bitfinex/quotes_SOLUSD_20241231
["timestamp","ask_amount","ask_price","bid_price","bid_amount"]
[1735661543186,23.776884,198.46,198.42,1.6908]
[1735661543378,20.0,198.44,198.43,1.6908]
[1735661544304,20.0,198.49,198.43,1.6908]
[1735661544515,20.0,198.49,198.45,1.6908]
[1735661544809,20.0,198.46,198.45,1.6908]
[1735661547506,20.0,198.47,198.45,1.6908]
[1735661547704,43.776884,198.47,198.46,1.6908]
[1735661547920,43.776884,198.47,198.44,1.6908]
[1735661548084,23.776884,198.46,198.43,1.6908]
[1735661548588,20.0,198.45,198.43,1.6908]
[1735661550991,20.0,198.45,198.42,1.6908]
[1735661551191,20.0,198.45,198.43,1.6908]
[1735661552016,20.0,198.45,198.42,1.6908]
[1735661552196,20.0,198.45,198.43,1.6908]
[1735661557219,20.0,198.45,198.44,1.6908]
[1735661558323,0.09662741,198.54,198.46,1.6908]
[1735661558521,20.0,198.55,198.46,1.6908]
[1735661558695,20.0,198.47,198.46,1.6908]
[1735661566326,0.09662741,198.56,198.48,1.6908]
[1735661566925,20.0,198.52,198.48,1.6908]
[1735661567108,20.0,198.49,198.48,1.6908]
[1735661574221,0.09662741,198.56,198.48,1.6908]
[1735661574222,20.09662741,198.56,198.48,1.6908]
[1735661574417,20.09662741,198.56,198.5,1.6908]
[1735661574731,0.09662741,198.56,198.51,1.6908]
[1735661575133,23.776884,198.53,198.51,1.6908]
[1735661575843,20.0,198.54,198.51,1.6908]
[1735661576836,20.09662741,198.54,198.51,1.6908]
[1735661577421,0.09662741,198.53,198.51,1.6908]
[1735661578436,0.09662741,198.53,198.52,1.6908]
[1735661579840,20.0,198.54,198.52,1.6908]
[1735661581739,20.0,198.54,198.48,1.5259]
[1735661581740,20.0,198.54,198.53,1.6908]
[1735661581942,20.09662741,198.58,198.53,1.6908]
[1735661582129,20.0,198.58,198.54,1.6908]
[1735661582328,0.09662741,198.57,198.54,1.6908]
[1735661582522,0.09662741,198.57,198.56,1.6908]
[1735661582833,1.607,198.63,198.48,1.5259]
[1735661582834,0.09662741,198.62,198.57,1.6908]
[1735661583028,20.0,198.59,198.57,1.6908]
[1735661583628,20.0,198.61,198.57,1.6908]
[1735661584328,20.0,198.58,198.57,1.6908]
[1735661584915,0.09662741,198.62,198.57,1.6908]
[1735661585541,0.09662741,198.62,198.59,1.6908]
[1735661586331,20.0,198.6,198.59,1.6908]
[1735661586840,20.09662741,198.62,198.59,1.6908]
[1735661587160,0.09662741,198.62,198.59,1.6908]
[1735661587326,0.09662741,198.62,198.6,1.6908]
[1735661588118,20.09662741,198.62,198.6,1.6908]
[1735661589227,20.09662741,198.62,198.59,1.6908]
[1735661589433,23.776884,198.61,198.57,1.6908]
[1735661589627,23.776884,198.65,198.5,6.2289]
[1735661589628,43.776884,198.58,198.56,1.6908]
[1735661589943,23.776884,198.57,198.56,1.6908]
[1735661590144,20.0,198.55,198.52,1.6908]
[1735661590327,20.0,198.55,198.54,1.6908]
[1735661590526,7.09884212,198.64,198.48,1.5259]
[1735661590527,43.776884,198.6,198.51,1.6908]
[1735661590954,20.0,198.51,198.5,1.6908]
[1735661591558,1.5208,198.59,198.52,1.6908]
[1735661591559,20.0,198.57,198.52,1.6908]
[1735661591732,20.0,198.53,198.52,1.6908]
[1735661593227,20.0,198.53,198.49,1.6908]
[1735661593435,20.0,198.49,198.48,1.6908]
[1735661594450,1.5208,198.59,198.48,1.6908]
[1735661594631,20.0,198.57,198.5,1.6908]
[1735661594831,20.0,198.57,198.51,1.6908]
[1735661595033,20.0,198.54,198.53,1.6908]
[1735661596254,20.0,198.55,198.53,1.6908]
[1735661597352,1.5208,198.59,198.5,1.6908]
[1735661597353,23.776884,198.54,198.5,1.6908]
[1735661597852,23.776884,198.55,198.5,1.6908]
[1735661599356,23.776884,198.55,198.49,1.6908]
[1735661599649,23.776884,198.55,198.47,1.6908]
[1735661599854,23.776884,198.55,198.49,1.6908]
[1735661600043,23.776884,198.55,198.47,1.6908]
[1735661600653,23.776884,198.55,198.48,1.6908]
[1735661601238,23.776884,198.55,198.49,1.6908]
[1735661606140,23.776884,198.55,198.47,1.6908]
[1735661606349,43.776884,198.48,198.46,1.6908]
[1735661606548,23.776884,198.47,198.45,1.6908]
[1735661606739,20.0,198.52,198.45,1.6908]
[1735661606941,20.0,198.45,198.44,1.6908]
[1735661607138,23.776884,198.47,198.45,1.6908]
[1735661607355,20.0,198.44,198.43,1.6908]
[1735661607557,20.0,198.44,198.42,1.6908]
[1735661607756,20.0,198.44,198.41,1.6908]
[1735661608556,20.0,198.47,198.4,1.6908]
[1735661608748,20.0,198.43,198.4,1.6908]
[1735661609253,20.0,198.43,198.38,1.6334]
[1735661609254,20.0,198.43,198.42,1.6908]
[1735661610937,20.0,198.4,198.39,1.6908]
[1735661611547,20.0,198.47,198.39,1.6908]
[1735661611752,20.0,198.4,198.39,1.6908]
[1735661612270,43.776884,198.47,198.4,1.6908]
[1735661613153,43.776884,198.47,198.41,1.6908]
[1735661613459,1.5105,198.51,198.43,1.6908]
[1735661613460,5.30112856,198.51,198.43,1.6908]
[1735661613661,20.0,198.48,198.4,1.6908]
[1735661613981,23.776884,198.47,198.38,1.6908]
[1735661614357,23.776884,198.47,198.39,1.6908]
[1735661615162,23.776884,198.47,198.41,1.6908]
[1735661615365,23.776884,198.47,198.39,1.6908]
[1735661616480,23.776884,198.47,198.4,1.6908]
[1735661616984,23.776884,198.47,198.39,1.6908]
[1735661617354,23.776884,198.47,198.41,1.6908]
[1735661617556,23.776884,198.47,198.39,1.6908]
[1735661617756,23.776884,198.47,198.41,1.6908]
[1735661618552,20.0,198.4,198.38,1.6908]
[1735661618876,43.776884,198.4,198.39,1.6908]
[1735661619071,43.776884,198.4,198.38,1.6908]
[1735661620172,43.776884,198.4,198.37,1.6908]
[1735661620378,1.5105,198.51,198.35,1.6908]
[1735661620379,20.0,198.37,198.35,1.6908]
[1735661620558,20.0,198.37,198.32,1.6908]
[1735661620761,20.0,198.37,198.3,1.6908]
[1735661620971,20.0,198.33,198.3,1.6908]
[1735661621159,20.0,198.33,198.32,1.6908]
[1735661622259,20.0,198.33,198.31,1.6908]
[1735661623963,43.776884,198.33,198.31,1.6908]
[1735661624164,20.0,198.4,198.31,1.6908]
[1735661624467,20.0,198.36,198.31,1.6908]
[1735661625175,20.0,198.32,198.31,1.6908]
[1735661628063,43.776884,198.32,198.29,1.6908]
[1735661628470,23.776884,198.31,198.29,1.6908]
[1735661628876,20.0,198.34,198.3,1.6908]
[1735661629072,43.776884,198.31,198.3,1.6908]
[1735661629272,43.776884,198.31,198.29,1.6908]
[1735661629990,20.0,198.27,198.25,1.6908]
[1735661630191,20.0,198.27,198.22,1.6908]
[1735661630490,20.0,198.23,198.22,1.6908]
[1735661630674,20.0,198.23,198.21,1.6908]
[1735661630882,20.0,198.23,198.22,1.6908]
[1735661633090,1.6283,198.34,198.25,1.6908]
[1735661633091,20.0,198.32,198.25,1.6908]
[1735661633593,43.776884,198.28,198.27,1.6908]
[1735661634378,1.6283,198.34,198.28,1.6908]
[1735661634577,23.776884,198.33,198.27,1.6908]
[1735661635290,20.0,198.3,198.27,1.6908]
[1735661635497,23.776884,198.29,198.27,1.6908]
[1735661635669,20.0,198.27,198.26,1.6908]
[1735661636091,20.0,198.28,198.26,1.6908]
[1735661636293,43.776884,198.28,198.26,1.6908]
[1735661636493,23.776884,198.27,198.23,1.6908]
[1735661636709,20.0,198.27,198.22,1.6908]
[1735661637004,20.0,198.27,198.25,1.6908]
[1735661637178,20.0,198.3,198.24,1.6908]
[1735661637378,20.0,198.3,198.22,1.6908]
[1735661637591,20.0,198.3,198.2,1.6908]
[1735661637979,20.0,198.3,198.23,1.6908]
[1735661640276,20.0,198.3,198.21,1.6908]
[1735661640985,20.0,198.3,198.22,1.6908]
[1735661641183,20.0,198.3,198.21,1.6908]
[1735661641415,20.0,198.3,198.24,1.6908]
[1735661641989,20.0,198.3,198.25,1.6908]
[1735661642186,20.0,198.3,198.26,1.6908]
[1735661642589,20.0,198.3,198.27,1.6908]
[1735661642874,23.776884,198.33,198.27,1.6908]
[1735661643178,23.776884,198.33,198.25,1.6908]
[1735661643391,20.0,198.3,198.27,1.6908]
[1735661647486,20.0,198.27,198.26,1.6908]
[1735661647702,20.0,198.27,198.25,1.6908]
[1735661648000,23.776884,198.33,198.25,1.6908]
[1735661648206,20.0,198.28,198.25,1.6908]
[1735661648702,23.776884,198.31,198.25,1.6908]
[1735661648908,1.6283,198.34,198.29,1.6908]
[1735661649083,1.6283,198.34,198.3,1.6908]
[1735661649284,20.0,198.31,198.3,1.6908]
[1735661652011,20.0,198.3,198.28,1.6908]
[1735661653112,20.0,198.3,198.29,1.6908]
[1735661653311,20.0,198.3,198.28,1.6908]
[1735661653707,20.0,198.3,198.29,1.6908]
[1735661654402,20.0,198.32,198.29,1.6908]
[1735661655719,43.776884,198.32,198.31,1.6908]
[1735661655918,43.776884,198.32,198.28,1.6908]
[1735661656218,43.776884,198.32,198.31,1.6908]
[1735661656389,43.776884,198.32,198.28,1.6908]
[1735661656587,43.776884,198.32,198.31,1.6908]
[1735661657924,20.0,198.28,198.27,1.6908]
[1735661659216,20.0,198.28,198.18,136.6203]
[1735661659217,23.776884,198.27,198.25,1.6908]
[1735661659409,20.0,198.28,198.26,1.6908]
[1735661659602,23.776884,198.27,198.26,1.6908]
[1735661659993,20.0,198.28,198.26,1.6908]
[1735661660195,23.776884,198.27,198.26,1.6908]
[1735661660716,20.0,198.27,198.26,1.6908]
[1735661660891,43.776884,198.27,198.26,1.6908]
[1735661662235,20.0,198.32,198.27,1.6908]
[1735661662514,20.0,198.29,198.28,1.6908]
[1735661662712,23.776884,198.27,198.25,1.6908]
[1735661663016,23.776884,198.27,198.23,1.6908]
[1735661663398,23.776884,198.3,198.23,1.6908]
[1735661663592,20.0,198.27,198.23,1.6908]
[1735661663799,20.0,198.24,198.23,1.6908]
[1735661664005,43.776884,198.24,198.23,1.6908]
[1735661664204,20.0,198.24,198.23,1.6908]
[1735661664606,23.776884,198.31,198.27,1.6908]
[1735661664916,1.6283,198.34,198.28,1.6908]
[1735661665126,20.0,198.3,198.28,1.6908]
[1735661665331,43.776884,198.29,198.28,1.6908]
[1735661667117,1.6283,198.34,198.3,1.6908]
[1735661667327,3.79280054,198.38,198.31,1.6908]
[1735661667533,20.09662741,198.37,198.31,1.6908]
[1735661667699,20.0,198.33,198.31,1.6908]
[1735661667897,23.776884,198.32,198.31,1.6908]
[1735661668217,20.0,198.32,198.31,1.6908]
[1735661669803,43.776884,198.35,198.31,1.6908]
[1735661671126,0.09662741,198.37,198.26,1.6292]
[1735661671127,0.09662741,198.37,198.33,1.6908]
[1735661671299,0.09662741,198.37,198.35,1.6908]
[1735661671499,3.79280054,198.39,198.36,1.6908]
[1735661671925,23.776884,198.38,198.36,1.6908]
[1735661672125,11.302728,198.44,198.36,1.6908]
[1735661672430,1.5243,198.44,198.38,1.6908]
[1735661672611,23.776884,198.39,198.38,1.6908]
[1735661672814,20.0,198.39,198.38,1.6908]
[1735661673315,23.776884,198.39,198.38,1.6908]
[1735661673923,23.776884,198.43,198.34,1.6908]
[1735661674101,23.776884,198.39,198.34,1.6908]
[1735661674307,23.776884,198.39,198.35,1.6908]
[1735661675715,23.776884,198.39,198.34,1.6908]
[1735661676018,23.776884,198.39,198.31,1.6908]
[1735661676317,20.0,198.32,198.31,1.6908]
[1735661677920,43.776884,198.32,198.31,1.6908]
[1735661678103,20.0,198.39,198.28,1.6908]
[1735661678426,20.0,198.32,198.3,1.6908]
[1735661678812,20.0,198.32,198.31,1.6908]
[1735661679122,12.10093703,198.41,198.3,1.6908]
[1735661679123,23.776884,198.36,198.3,1.6908]
[1735661679511,23.776884,198.36,198.31,1.6908]
[1735661679824,20.0,198.38,198.31,1.6908]
[1735661680194,20.0,198.37,198.31,1.6908]
[1735661680401,20.0,198.37,198.34,1.6908]
[1735661680620,20.0,198.42,198.34,1.6908]
[1735661680811,9.8335,198.44,198.34,1.6908]
[1735661680812,43.776884,198.35,198.34,1.6908]
[1735661681420,23.776884,198.34,198.33,1.6908]
[1735661681802,5.31603703,198.44,198.35,1.6908]
[1735661682003,5.31603703,198.44,198.36,1.6908]
[1735661682512,23.776884,198.37,198.36,1.6908]
[1735661682823,23.776884,198.37,198.35,1.6908]
[1735661683023,20.0,198.36,198.35,1.6908]
[1735661683219,43.776884,198.36,198.35,1.6908]
[1735661686022,20.0,198.42,198.38,1.6908]
[1735661686632,20.0,198.39,198.38,1.6908]
[1735661687241,23.776884,198.39,198.38,1.6908]
[1735661689129,20.0,198.42,198.3,9.77842762]
[1735661689303,3.79173703,198.45,198.35,9.77842762]
[1735661689504,3.79173703,198.45,198.36,9.77842762]
[1735661689723,3.79173703,198.48,198.36,9.77842762]
[1735661689920,23.776884,198.47,198.36,9.77842762]
[1735661690318,3.79173703,198.48,198.37,9.77842762]
[1735661690522,1.5304,198.54,198.38,9.77842762]
[1735661690722,23.776884,198.53,198.38,9.77842762]
[1735661691221,20.0,198.5,198.38,9.77842762]
[1735661691428,20.0,198.46,198.41,17.44682762]
[1735661691613,1.5304,198.54,198.41,17.44682762]
[1735661691811,1.5304,198.54,198.42,9.77842762]
[1735661692219,20.0,198.48,198.42,15.27765751]
[1735661692423,1.5304,198.59,198.43,15.27765751]
[1735661692619,1.5304,198.59,198.44,15.27765751]
[1735661692821,1.5304,198.59,198.45,15.27765751]
[1735661693313,23.776884,198.56,198.45,15.27765751]
[1735661693516,20.0,198.53,198.45,15.27765751]
[1735661693716,0.09662741,198.57,198.45,15.27765751]
[1735661694112,20.0,198.51,198.45,15.27765751]
[1735661694332,20.0,198.51,198.46,15.27765751]
[1735661694535,20.0,198.51,198.45,15.27765751]
[1735661694918,20.0,198.53,198.45,15.27765751]
[1735661696510,20.0,198.53,198.41,12.6684]
[1735661696511,20.0,198.53,198.44,15.27765751]
[1735661697210,20.0,198.53,198.43,15.27765751]
[1735661697427,20.0,198.49,198.42,15.27765751]
[1735661697616,20.0,198.49,198.43,15.27765751]
[1735661698031,20.0,198.49,198.44,15.27765751]
[1735661699519,20.0,198.49,198.43,15.27765751]
[1735661699744,20.0,198.49,198.42,15.27765751]
[1735661699933,20.0,198.49,198.43,15.27765751]
[1735661700232,20.0,198.49,198.44,15.27765751]
[1735661700437,1.5304,198.59,198.48,15.27765751]
[1735661700733,20.0,198.53,198.47,15.27765751]
[1735661700911,23.776884,198.54,198.47,15.27765751]
[1735661701633,23.776884,198.54,198.45,15.27765751]
[1735661701934,23.776884,198.54,198.44,15.27765751]
[1735661702109,23.776884,198.54,198.47,15.27765751]
[1735661702438,20.0,198.57,198.47,15.27765751]
[1735661702737,0.09662741,198.6,198.5,16.91985751]
[1735661702924,5.37132379,198.64,198.51,15.27765751]
[1735661703122,23.776884,198.63,198.51,15.27765751]
[1735661703323,20.0,198.56,198.51,15.27765751]
[1735661705024,1.67872741,198.64,198.53,15.27765751]
[1735661705219,0.09662741,198.64,198.54,15.27765751]
[1735661705419,0.09662741,198.64,198.55,15.27765751]
[1735661705814,20.0,198.61,198.54,15.27765751]
[1735661706019,20.0,198.61,198.51,5.0]
[1735661706220,20.0,198.61,198.54,15.27765751]
[1735661706621,20.0,198.61,198.53,15.27765751]
[1735661707252,1.5821,198.69,198.58,16.91985751]
[1735661707618,20.0,198.68,198.58,16.91985751]
[1735661707950,3.78770433,198.71,198.61,15.27765751]
[1735661708246,1.5821,198.74,198.62,15.27765751]
[1735661708622,23.776884,198.73,198.62,15.27765751]
[1735661708822,6.1433,198.78,198.63,15.27765751]
[1735661709035,6.1433,198.78,198.65,15.27765751]
[1735661709234,20.0,198.76,198.66,8.0765]
[1735661709440,1.625,198.79,198.66,8.0765]
[1735661709844,1.625,198.79,198.66,23.35415751]
[1735661710247,7.8659,198.83,198.67,15.27765751]
[1735661710942,23.776884,198.82,198.66,23.35415751]
[1735661711238,20.0,198.8,198.66,23.35415751]
[1735661711615,20.0,198.76,198.66,23.35415751]
[1735661711821,23.776884,198.79,198.66,23.35415751]
[1735661712540,20.0,198.76,198.66,23.35415751]
[1735661713045,20.0,198.79,198.66,23.35415751]
[1735661714040,20.0,198.79,198.66,8.0765]
[1735661714240,20.0,198.79,198.66,23.35415751]
[1735661714440,20.0,198.79,198.67,15.27765751]
[1735661714623,20.0,198.79,198.68,15.27765751]
[1735661714828,7.8659,198.83,198.7,15.27765751]
[1735661715032,20.0,198.8,198.7,15.27765751]
[1735661715235,23.776884,198.79,198.7,15.27765751]
[1735661715551,20.0,198.86,198.7,15.27765751]
[1735661715725,1.625,198.88,198.72,15.27765751]
[1735661716047,23.776884,198.87,198.72,15.27765751]
[1735661716735,20.0,198.8,198.71,15.27765751]
[1735661717546,23.776884,198.87,198.71,15.27765751]
[1735661718941,1.625,198.88,198.73,1.5037]
[1735661719147,1.61,198.98,198.77,8.0188]
[1735661719323,1.61,198.98,198.84,15.27765751]
[1735661719525,1.61,198.98,198.85,15.27765751]
[1735661719726,1.61,198.98,198.83,15.27765751]
[1735661720244,1.61,198.98,198.82,15.27765751]
[1735661720456,6.0073,198.99,198.86,1.5037]
[1735661720636,20.02,199.0,198.87,6.5151]
[1735661721529,20.0,198.97,198.87,6.5151]
[1735661721726,20.02,199.0,198.87,6.5151]
[1735661722146,20.0,198.97,198.87,6.5151]
[1735661722327,20.02,199.0,198.87,6.5151]
[1735661723044,20.02,199.0,198.87,21.79275751]
[1735661723045,23.776884,198.95,198.87,21.79275751]
[1735661723250,20.0,198.96,198.87,6.5151]
[1735661723751,23.776884,198.95,198.87,6.5151]
[1735661724330,20.0,198.97,198.87,6.5151]
[1735661724937,23.776884,198.96,198.87,6.5151]
[1735661725141,23.776884,198.96,198.87,21.79275751]
[1735661725344,23.776884,198.96,198.87,6.5151]
[1735661725546,20.02,199.0,198.89,15.27765751]
[1735661725854,23.776884,198.99,198.9,15.27765751]
[1735661726055,20.02,199.0,198.9,15.27765751]
[1735661726264,20.0,198.97,198.89,15.27765751]
[1735661726553,23.776884,198.99,198.89,15.27765751]
[1735661726739,23.776884,198.99,198.9,15.27765751]
[1735661726939,23.776884,198.99,198.89,15.27765751]
[1735661727354,20.0,198.97,198.88,15.27765751]
[1735661727550,20.0,198.97,198.89,15.27765751]
[1735661728756,23.776884,198.99,198.9,15.27765751]
[1735661729540,23.776884,198.99,198.87,11.5151]
[1735661729541,23.776884,198.99,198.88,15.27765751]
[1735661729775,23.776884,198.99,198.87,6.5151]
[1735661730736,20.0,198.96,198.87,6.5151]
[1735661730933,20.0,198.96,198.87,21.79275751]
[1735661731170,20.0,198.96,198.88,15.27765751]
[1735661731533,20.0,198.96,198.89,15.27765751]
[1735661731942,20.0,198.96,198.88,15.27765751]
[1735661732294,20.0,198.96,198.87,6.5151]
[1735661735388,20.0,198.92,198.87,6.5151]
[1735661736890,26.6549,199.0,198.87,6.5151]
[1735661736891,23.776884,198.99,198.87,6.5151]
[1735661737052,23.776884,198.99,198.86,1.5037]
[1735661737053,20.0,198.92,198.86,1.5037]
[1735661737255,20.0,198.92,198.82,6.5031]
[1735661737256,23.776884,198.91,198.82,6.5031]
[1735661738176,20.0,198.88,198.82,6.5031]
[1735661738980,20.0,198.88,198.81,1.5495]
[1735661738981,23.776884,198.87,198.81,1.5495]
[1735661739488,23.776884,198.87,198.77,6.3891]
[1735661740376,23.776884,198.87,198.75,16.89465751]
[1735661740377,23.776884,198.83,198.75,1.617]
[1735661741166,20.0,198.8,198.75,1.617]
[1735661741476,23.776884,198.79,198.72,6.3611]
[1735661742064,23.776884,198.79,198.7,1.617]
[1735661742261,20.0,198.76,198.7,1.617]
[1735661742456,20.0,198.76,198.7,16.89465751]
[1735661742687,1.5896,198.88,198.71,15.27765751]
[1735661742861,1.5896,198.88,198.7,16.89465751]
[1735661742862,23.776884,198.87,198.7,16.89465751]
[1735661743269,20.0,198.8,198.7,1.617]
[1735661743469,20.0,198.76,198.7,1.617]
[1735661743681,20.0,198.76,198.7,16.89465751]
[1735661744157,20.0,198.76,198.7,1.617]
[1735661745357,1.5896,198.88,198.72,15.27765751]
[1735661745563,1.5896,198.88,198.75,15.27765751]
[1735661745989,23.776884,198.83,198.75,15.27765751]
[1735661746679,5.0,198.93,198.71,5.0]
[1735661746680,1.5896,198.93,198.79,15.27765751]
[1735661746884,1.5896,198.93,198.8,15.27765751]
[1735661747070,23.776884,198.92,198.79,1.617]
[1735661747275,23.776884,198.88,198.79,1.617]
[1735661747585,23.776884,198.88,198.79,16.89465751]
[1735661747772,20.0,198.85,198.79,1.617]
[1735661747962,23.776884,198.92,198.79,1.617]
[1735661748362,20.0,198.85,198.79,1.617]
[1735661750293,6.5219,198.96,198.81,15.27765751]
[1735661750585,23.776884,198.95,198.82,15.27765751]
[1735661750771,20.0,198.92,198.81,15.27765751]
[1735661750971,20.0,198.92,198.79,1.617]
[1735661750972,20.0,198.92,198.8,15.27765751]
[1735661751363,20.0,198.92,198.79,16.89465751]
[1735661752260,20.0,198.92,198.8,15.27765751]
[1735661753387,20.0,198.92,198.79,1.617]
[1735661753388,20.0,198.92,198.81,15.27765751]
[1735661753589,20.0,198.92,198.8,15.27765751]
[1735661754776,20.0,198.92,198.79,16.89465751]
[1735661755275,20.0,198.92,198.8,15.27765751]
[1735661755687,20.0,198.92,198.79,16.89465751]
[1735661755886,20.0,198.92,198.79,1.617]
[1735661756182,20.0,198.92,198.79,16.89465751]
[1735661757088,20.0,198.92,198.8,15.27765751]
[1735661758989,20.0,198.88,198.8,15.27765751]
[1735661759388,20.0,198.88,198.81,15.27765751]
[1735661759584,20.0,198.93,198.81,15.27765751]
[1735661759881,23.776884,198.92,198.81,15.27765751]
[1735661760297,6.5219,198.96,198.83,15.27765751]
[1735661760481,1.5896,198.98,198.85,15.27765751]
[1735661761280,20.0,198.97,198.86,7.9781]
[1735661761684,23.87351141,198.99,198.86,7.9781]
[1735661761884,23.776884,198.95,198.86,7.9781]
[1735661763390,23.776884,198.95,198.86,23.25575751]
[1735661763877,20.0,198.97,198.86,23.25575751]
[1735661764078,20.0,198.97,198.88,15.27765751]
[1735661764388,20.02,199.0,198.89,15.27765751]
[1735661764788,20.0,198.97,198.89,15.27765751]
[1735661766899,20.0,198.97,198.88,15.27765751]
[1735661767333,20.0,198.97,198.89,15.27765751]
[1735661767905,20.0,198.97,198.88,15.27765751]
[1735661769589,23.776884,198.99,198.86,7.9781]
[1735661769590,20.0,198.96,198.86,7.9781]
[1735661770097,23.776884,198.95,198.86,7.9781]
[1735661771010,23.776884,198.95,198.86,1.617]
[1735661775315,23.776884,198.95,198.87,15.27765751]
[1735661775513,20.02,199.0,198.88,15.27765751]
[1735661775699,20.02,199.0,198.89,15.27765751]
[1735661776207,20.02,199.0,198.86,1.617]
[1735661776208,20.0,198.97,198.86,16.89465751]
[1735661776513,23.776884,198.96,198.86,16.89465751]
[1735661777521,23.776884,198.94,198.86,1.617]
[1735661778115,23.776884,198.94,198.86,16.89465751]
[1735661782295,20.0,198.97,198.88,15.27765751]
[1735661782496,23.776884,198.99,198.89,15.27765751]
[1735661782692,20.02,199.0,198.9,15.27765751]
[1735661782922,20.0,198.97,198.9,15.27765751]
[1735661783224,20.0,198.96,198.89,15.27765751]
[1735661783814,20.0,198.97,198.89,15.27765751]
[1735661784217,20.0,198.96,198.89,15.27765751]
[1735661784597,23.776884,198.99,198.89,15.27765751]
[1735661784803,23.776884,198.99,198.9,15.27765751]
[1735661785403,20.02,199.0,198.91,15.27765751]
[1735661785720,20.02,199.0,198.96,15.27765751]
[1735661786025,20.02,199.0,198.95,1.643]
[1735661786928,19.52,199.0,198.95,1.643]
[1735661789012,23.776884,198.99,198.9,16.92065751]
[1735661789513,19.52,199.0,198.9,1.643]
[1735661789702,19.52,199.0,198.9,16.92065751]
[1735661789901,19.52,199.0,198.91,15.27765751]
[1735661791024,19.52,199.0,198.9,1.643]
[1735661791321,19.52,199.0,198.91,15.27765751]
[1735661791826,23.776884,198.99,198.9,1.643]
[1735661792705,23.776884,198.99,198.9,16.92065751]
[1735661793706,23.776884,198.99,198.91,15.27765751]
[1735661796128,23.776884,198.99,198.9,1.643]
[1735661796129,19.52,199.0,198.92,15.27765751]
[1735661796510,19.52,199.0,198.91,15.27765751]
[1735661797344,19.52,199.0,198.9,16.92065751]
[1735661800027,23.776884,198.99,198.9,16.92065751]
[1735661801137,25.388084,198.99,198.9,15.27765751]
[1735661801528,19.52,199.0,198.93,15.27765751]
[1735661802238,19.52,199.0,198.95,9.72544673]
[1735661802435,19.52,199.0,198.96,9.72544673]
[1735661802633,19.52,199.0,198.95,9.72544673]
[1735661803339,23.776884,198.99,198.92,11.24304673]
[1735661803534,23.776884,198.99,198.91,9.72544673]
[1735661804329,23.776884,198.99,198.9,9.72544673]
[1735661805239,23.776884,198.99,198.91,7.07944673]
[1735661805615,23.776884,198.99,198.87,1.5176]
[1735661805824,23.776884,198.99,198.88,9.72544673]
[1735661806222,23.776884,198.97,198.85,135.0]
[1735661806416,23.776884,198.93,198.85,15.20763197]
[1735661806740,43.776884,198.95,198.85,15.20763197]
[1735661806924,23.776884,198.95,198.85,15.20763197]
[1735661807327,20.0,198.93,198.84,15.20763197]
[1735661807821,20.0,198.93,198.83,15.20763197]
[1735661809922,20.0,198.93,198.84,15.20763197]
[1735661810244,20.0,198.93,198.83,15.20763197]
[1735661812355,20.0,198.93,198.81,15.20763197]
[1735661812544,23.776884,198.88,198.8,15.20763197]
[1735661812731,23.776884,198.88,198.79,15.20763197]
[1735661813130,23.776884,198.88,198.78,15.20763197]
[1735661813331,20.0,198.85,198.76,15.20763197]
[1735661813731,20.0,198.85,198.77,15.20763197]
[1735661815025,20.0,198.85,198.78,15.20763197]